Cogmind - Beta 12 X4 @@@ ROGUE MODE // 2022.12.21 @ 20:30:28 Player: Runia Result: Destroyed by as-17097 with Assembled Heavy Rifle Performance ------------- Evolutions (0) 0 Regions Visited (2) 400 Robots Destroyed (30) 150 Value Destroyed (572) 572 Prototype IDs (4) 80 Alien Tech Used (0) 0 Bonus (0) 0 TOTAL SCORE: 1202 Bonus ------- None Cogmind --------- Core Integrity 0/250 Matter 300/300 Energy 96/100 System Corruption 0% Temperature Cool (0) Movement Treading (160) Location -10/Mines Parts ------- > --- POWER (1) -------- (None) > --- PROPULSION (2) --- Light Treads Light Treads > --- UTILITY (2) ------ Improved Heat Sink Large Storage Unit > --- WEAPON (2) ------- Small Laser Small Laser > --- INVENTORY (15) --- Light Treads Wheel Wheel Heat Sink Improved Heat Sink High-capacity Matter Pod (200) Improved Terrain Scanner Light Armor Plating Light Assault Rifle Light Assault Rifle Light Assault Rifle Light Assault Rifle Peak State ------------ > --- POWER ------------ Light Nuclear Core > --- PROPULSION ------- Light Treads Light Treads > --- UTILITY ---------- Improved Heat Sink Large Storage Unit > --- WEAPON ----------- Medium Laser Small Laser > --- INVENTORY -------- Light Treads Wheel Heat Sink High-capacity Matter Pod Improved Terrain Scanner Medium Laser Small Laser Small Laser [Rating: 12] Favorites ----------- Power Light Ion Engine Engine Light Ion Engine Power Core Light Nuclear Core Propulsion Light Treads Treads Light Treads Leg Aluminum Leg Utility Large Storage Unit Device Improved Heat Sink Storage Large Storage Unit Protection Light Armor Plating Weapon Medium Laser Energy Gun Medium Laser Build | -11 -10 -10 ------- Run | Scr Mat Min Slots Evolved . | . . . Power . | . . . Propulsion . | . . . Utility . | . . . Weapon . | . . . Parts Attached 18 | 2 13 3 Power 3 | . 3 . Engine 2 | . 2 . Core 1 | . 1 . Reactor . | . . . Propulsion 5 | 2 2 1 Treads 5 | 2 2 1 Leg . | . . . Wheel . | . . . Hover . | . . . Flight . | . . . Utility 5 | . 5 . Device 2 | . 2 . Storage 1 | . 1 . Processor . | . . . Hackware . | . . . Protection 2 | . 2 . Artifact . | . . . Weapon 5 | . 3 2 Energy Gun 5 | . 3 2 Energy Cannon . | . . . Ballistic Gun . | . . . Ballistic Cannon . | . . . Launcher . | . . . Special Weapon . | . . . Impact Weapon . | . . . Slashing Weapon . | . . . Piercing Weapon . | . . . Special Melee Weapon . | . . . Unidentified Prototypes . | . . . Parts Lost 8 | . 4 4 Power 3 | . 2 1 Propulsion 2 | . 1 1 Utility 1 | . 1 . Weapon 2 | . . 2 Highest Loss Streak 3 | . 2 3 To Critical Strikes . | . . . Average Slot Usage (%) 97 | . 97 97 Engine 11 | . 11 11 Core 2 | . 2 . Treads 27 | . 27 28 Device 7 | . 6 14 Storage 14 | . 14 14 Protection 4 | . 5 . Energy Gun 28 | . 28 28 Naked Turns . | . . . Heaviest Build 31 | 11 31 26 Greatest Support 40 | 40 40 40 Greatest Overweight (x) . | . . . Average Overweight (x) . | . . . Largest Inventory Capacity 15 | 8 15 15 Average Capacity 13 | 8 13 15 Most Carried 14 | 6 14 13 Average Carried 7 | 4 7 11 Final Capacity 15 | 8 15 15 Final Carried 13 | 2 13 12 Class Distribution -------------------- 100% | Mutant Dominant Class ---------------- Mutant | -10/Materials Mutant | -10/Mines Resources | -11 -10 -10 ----------- Run | Scr Mat Min Matter Collected 640 | 188 427 25 Remotely . | . . . Salvage Created 979 | . 844 135 Parts 60 | . 54 6 Haulers Intercepted 2 | . 2 . Recyclers Shooed . | . . . Parts Field Recycled . | . . . Retrieved Matter . | . . . Parts Self-Destructed . | . . . Prevented . | . . . Kills | -11 -10 -10 ------- Run | Scr Mat Min Combat Hostiles Destroyed 19 | . 13 6 Guns 19 | . 13 6 Classes Destroyed 10 | . 9 1 Worker 2 | . 2 . Builder 2 | . 2 . Tunneler 1 | . 1 . Hauler 2 | . 2 . Recycler 2 | . 2 . Operator 1 | . 1 . Watcher 3 | . 3 . Swarmer 6 | . 3 3 Grunt 11 | . 10 1 Assembled 2 | . . 2 Best Kill Streak 4 | . 4 3 Combat Bots Only 3 | . 3 3 Max Kills in Single Turn 1 | . 1 1 Gunslinging . | . . . Exploded . | . . . Melee . | . . . Uniques/NPCs Destroyed . | . . . Combat | -11 -10 -10 -------- Run | Scr Mat Min Damage Taken 1406 | . 891 515 Core 255 | . 173 82 Absorbed by Shields . | . . . Regen/Repaired (Parts) 110 | . 110 . Core Remaining (%) 100 | 100 . . Volleys Fired 103 | . 74 29 Largest 2 | . 2 2 Hottest 100 | . 100 90 Shots Fired 201 | . 143 58 Gun 201 | . 143 58 Cannon . | . . . Launcher . | . . . Special . | . . . Kinetic . | . . . Thermal 201 | . 143 58 Explosive . | . . . Electromagnetic . | . . . Robot Hit Streak 14 | . 14 5 Robot Miss Streak 5 | . 4 5 Penetration Max . | . . . Secondary Targets 2 | . 1 1 Max Gunslinging Chain 1 | . 1 1 Shots Hit Robots 129 | . 100 29 Core Hits 54 | . 44 10 Critical Kills . | . . . Critical Parts Destroyed . | . . . Critical Strikes 5 | . 5 . Burn 5 | . 5 . Melee Attacks . | . . . Impact . | . . . Slashing . | . . . Piercing . | . . . Sneak Attacks . | . . . Combat Hostiles . | . . . Follow-up Attacks . | . . . Damage Inflicted 1674 | . 1298 376 Guns 1645 | . 1269 376 Cannons . | . . . Explosions . | . . . Melee . | . . . Ramming 29 | . 29 . Kinetic . | . . . Thermal 1645 | . 1269 376 Explosive . | . . . Electromagnetic . | . . . Impact . | . . . Slashing . | . . . Piercing . | . . . Highest Corruption . | . . . Average Corruption . | . . . Corruption Purged . | . . . Corruption Blocked . | . . . Overload Shots . | . . . Overflow Damage . | . . . Projectiles . | . . . Explosions . | . . . Melee . | . . . Knockbacks . | . . . Impact . | . . . Kinetic . | . . . Secondary . | . . . Self-Inflicted Damage . | . . . Shots . | . . . Rammed 6 | . 6 . Targets Rammed 6 | . 6 . Kicked . | . . . Crushed . | . . . Highest Temperature 310 | . 310 14 Average Temperature 95 | . 99 3 Received Heat Transfer 595 | . 435 160 Effects 2 | . 2 . Energy Bleed 1 | . 1 . Interference 1 | . 1 . Siege Activations . | . . . Robots Corrupted . | . . . Combat Hostiles . | . . . Parts Fried . | . . . Impact Corruptions . | . . . Robots Melted . | . . . Combat Hostiles . | . . . Parts Melted 9 | . 8 1 Heat Transferred 4733 | . 3836 897 Parts Sabotaged . | . . . Parts Stolen . | . . . Parts Stripped . | . . . Power Chain Reactions . | . . . Missiles Intercepted . | . . . Alert | -11 -10 -10 ------- Run | Scr Mat Min Peak Influence 153 | . 153 53 Initial 13 | . . 13 Average 63 | . 69 32 Maximum Alert Level . | . . . Low Security (%) 100 | 100 100 100 Level 1 . | . . . Level 2 . | . . . Level 3 . | . . . Level 4 . | . . . Level 5 . | . . . High Security . | . . . Max Security . | . . . Squads Dispatched 4 | . 4 . Investigation 3 | . 3 . Extermination . | . . . Reinforcement 1 | . 1 . Assault . | . . . Garrison . | . . . Intercept . | . . . Searches Triggered . | . . . Construction Impeded . | . . . Haulers Reinforced . | . . . Active Scanning Responses . | . . . Cargo Convoy Interrupts . | . . . Stealth | -11 -10 -10 --------- Run | Scr Mat Min Distress Signals . | . . . Communications Jammed . | . . . Distress Signals . | . . . Times Spotted 36 | . 19 17 Peak Tracking Total 18 | . 4 18 Tactical Retreats 1 | . . 1 Traps | -11 -10 -10 ------- Run | Scr Mat Min Traps Triggered 2 | . 2 . Indirectly . | . . . Trap Hack Attempts . | . . . Triggered . | . . . Disarmed . | . . . Reprogrammed . | . . . Reused . | . . . Traps Extracted . | . . . Installed . | . . . Triggered . | . . . Machines | -11 -10 -10 ---------- Run | Scr Mat Min Machines Disabled . | . . . Max in Single Turn . | . . . Machines Sabotaged . | . . . Overloaded Fab Kills . | . . . Hacking | -11 -10 -10 --------- Run | Scr Mat Min Machines Accessed 8 | . 8 . Terminals 7 | . 7 . Fabricators . | . . . Repair Stations 1 | . 1 . Recycling Units . | . . . Scanalyzers . | . . . Garrison Access . | . . . Total Hacks 28 | . 28 . Successful 13 | . 13 . Failed 15 | . 15 . Catastrophic . | . . . Database Lockouts . | . . . Manual 16 | . 16 . Terminals 25 | . 25 . Fabricators . | . . . Repair Stations 3 | . 3 . Recycling Units . | . . . Scanalyzers . | . . . Garrison Access . | . . . Terminal Hacks 8 | . 8 . Robot Schematic 1 | . 1 . Robot Analysis 1 | . 1 . Prototype ID Bank 2 | . 2 . Hauler Manifests 1 | . 1 . Zone Layout 3 | . 3 . Fabricator Hacks . | . . . Repair Station Hacks 2 | . 2 . Scan Component 1 | . 1 . Repair 1 | . 1 . Recycling Unit Hacks . | . . . Scanalyzer . | . . . Garrison Access Hacks . | . . . Unauthorized Hacks 3 | . 3 . Terminals 3 | . 3 . Botnet 3 | . 3 . Fabricators . | . . . Repair Stations . | . . . Recycling Units . | . . . Scanalyzers . | . . . Garrison Access . | . . . Data Cores Recovered . | . . . Used . | . . . Hacking Detections 8 | . 8 . Full Trace Events 1 | . 1 . Feedback Events . | . . . Feedback Blocked . | . . . Robot Schematics Acquired 1 | . 1 . Robots Built . | . . . Authchips . | . . . Time . | . . . Total Robot Build Rating . | . . . Part Schematics Acquired . | . . . Parts Built . | . . . Authchips . | . . . Time . | . . . Total Part Build Rating . | . . . Parts Repaired 1 | . 1 . Time 13 | . 13 . Parts Recycled . | . . . Recycled Matter . | . . . Retrieved Matter . | . . . Retrieved Components . | . . . Parts Scanalyzed . | . . . Part Schematics Acquired . | . . . Parts Damaged . | . . . Bothacking | -11 -10 -10 ------------ Run | Scr Mat Min Used RIF Installer . | . . . Robots Hacked . | . . . Non-combat . | . . . Combat . | . . . Robot Hacks Applied . | . . . Relay Couplers Released . | . . . Fabnet Peak Effective % . | . . . Robots Rewired . | . . . Allies Hacked . | . . . Hacks Repelled . | . . . Allies | -11 -10 -10 -------- Run | Scr Mat Min Total Allies 2 | . . 2 Largest Group 2 | . . 2 Highest-Rated Group 42 | . . 42 Highest-Rated Ally 31 | . . 31 Total Orders . | . . . Ally Attacks 1 | . . 1 Total Damage 22 | . . 22 Kills . | . . . Allies Corrupted . | . . . Allies Melted . | . . . Intel | -11 -10 -10 ------- Run | Scr Mat Min Robot Analysis Total 1 | . 1 . Derelict Logs Recovered . | . . . Drone Launches . | . . . Drone Recoveries . | . . . Exploration | -11 -10 -10 ------------- Run | Scr Mat Min Turns Passed 1624 | 5 1361 258 Spaces Moved 752 | 1 654 97 Core . | . . . Treads 752 | 1 654 97 Legs . | . . . Wheels . | . . . Hover . | . . . Flight . | . . . Fastest Speed 160 | 160 160 160 Average Speed 160 | 160 160 160 Slowest Speed 160 | 160 160 160 Overloaded Moves . | . . . Propulsion Burnouts . | . . . Robots Hopped . | . . . Cave-ins Triggered . | . . . Exploration Rate (%) 45 | 1 96 40 Regions Visited 2 Branch Regions 1 Pre-discovered Areas . | . . . Known Exits Taken . | . . . Unknown Exits Taken 2 | 1 1 . Scrap Searched . | . . . Spaces Dug . | . . . Terrain Destroyed . | . . . Melee . | . . . Projectile . | . . . AOE . | . . . Terrain Rammed . | . . . Walls Destroyed . | . . . Machines Disabled . | . . . Actions | -11 -10 -10 --------- Run | Scr Mat Min Total 969 | 6 822 141 Wait 65 | . 55 10 Move 750 | . 653 97 Hop . | . . . Pick Up 17 | . 15 2 Fast Attach 4 | . 4 . Attach 11 | 2 6 3 Detach 1 | . 1 . Swap 3 | . 3 . Drop 9 | 4 5 . Fire 103 | . 74 29 Melee . | . . . Ram . | . . . Kick . | . . . Crush 6 | . 6 . Escape Stasis . | . . . Rewire . | . . . Trap . | . . . Miscellaneous . | . . . Route ------- -11/Scrapyard -10/Materials (discovered 5 exits: [*Mat x3] / [*Min x2]) -10/Mines History --------- Turn | Location | Event 6 | -11/Scrapyard | Discovered new exit (range 0) 6 | -11/Scrapyard | Entered Materials 105 | -10/Materials | Discovered new exit (range 9) 303 | -10/Materials | Build established: Mutant 371 | -10/Materials | Discovered new exit (range 8) 502 | -10/Materials | Discovered new exit (range 15) 559 | -10/Materials | Repaired Lgt. Treads 924 | -10/Materials | Core integrity fell below 50% 1037 | -10/Materials | Discovered new exit (range 16) 1059 | -10/Materials | Discovered new exit (range 15) 1367 | -10/Materials | Entered Mines 1437 | -10/Mines | Lost 3 parts (1n2w) 1473 | -10/Mines | Assembled infested the area 1478 | -10/Mines | Assisted by a Guerilla fighting off Assembled 1556 | -10/Mines | Core integrity fell below 20% 1625 | -10/Mines | Destroyed by as-17097 with Assembled Heavy Rifle Last Messages --------------- coming from, and they're closing on this area, come on!" 01479_ 3D-KFU(h): "I'll hold them off! Go on ahead or try to find another way!" 01480_ 3D-KFU(h) destroyed. 01498_ K-01 Serf collects debris. 01553_ G-34 Mercenary destroyed. 01564_ K-01 Serf collects debris. 01573_ G-47 Trooper heat damages Imp. Heat Sink. 01573_ K-01 Serf collects debris. 01575_ G-47 Trooper heat damages Aluminum Leg, Imp. Heat Sink, Lgt. Nuclear Core. 01575_ Lgt. Ion Engine destroyed. 01577_ G-47 Trooper heat damages Aluminum Leg. 01577_ Destroyed Imp. Heat Sink. 01577_ G-47 Trooper overheating. 01578_ Critical hit (Burn: +37). 01579_ G-47 Trooper heat damages Lgt. Nuclear Core. 01580_ G-47 Trooper destroyed. 01585_ as-81376 destroyed. 01615_ as-65683 destroyed. Map ----- +----------------------------------------------------+ | ?????????????????????????????? | | ??????????????????????????????# # | | ??????????????????????????????# | | ?????????????????????????????#" # | | ??????????????????????????????# # | | ????????????????????????????### %# | | ????????????????????????????# | | ????????????????????????????# | | ????????????????????????????# """ | | ????????????????????????? """ | | ???????? ?????????????# #### """ | | ???????? ??????????????????# | | ???????? ??????????????????###### | | ???????# ???????????????????????? | | ???????# ???????????????????????? | | ???????# ???????????????????????? | | ???????# ???????????????###?????? | | ???????# #????????????? #?????? | | ???????# #?????????????# #?????? | | ???????# #?????????????# #?????? | | ???????#aa#?????????????# #?????# | | ???????# #?????#######?# #????## | | ???????# =#????## ### ##???# | | ???????#!%#???## ##% ##?## | | ???????# #??## ### | | ???????# @#### | | ???????# ## | | ???????#### ## | | ??????????# ## | | ??????##### ### | | ??????# #### % ### | | ?????# ##?# %### ##?## | | ?????# #####??# #?# #???? | | ?????## #???????## ##?# #???? | | ??????####?????????#####??# #???? | | ??????????????????????????# #???? | | ?????????????????????????? ???? | | ??????????????????????????" #??? | | ?????????????????????????"" #??? | | ?????????????????????????"" #??? | | ????????????????????????? #??? | | ?????????????????????????"" #??? | | ??????????????????????????" #??? | | ??????????????????????????" #??? | | ?????????????????????????? #??? | | ??????????????????????????? #??? | | ??????????????????????????? #??? | | ??????????????????????????? #??? | | ???????????????????????????###???? | | ?????????????????????????????????? | +----------------------------------------------------+ Best States ------------- Heat Dissipation 39 Energy Generation 14 Energy Capacity 250 Matter Stores 300 Matter Capacity 300 Sight Range 16 Terrain Scan Density 10 Armor Coverage 150 Evasion (%) 40 Recoil Reduction 2 Item Schematics ----------------- None Robot Schematics ------------------ M-13 Machinist | -10/Materials | Hacked Fabricated ------------ Nothing Alien Tech Used ----------------- None Achievements -------------- None Challenges ------------ None Game ------ Seed HugeWeightPerforator Manual? 0 Play Time 00:10:38 Cumulative 732.4 hours Start 2022.12.21 @ 20:20:12 End 2022.12.21 @ 20:30:28 Sessions 1 Manual Loads 0 Difficulty Rogue Special Mode None Game No. 647 Rogue 647 Adventurer 0 Explorer 0 Win Type - Total 34 Types 14/5/6/1/1/1/4/1/1 Lore% 93 Gallery% 97 Achievement% 80 Wizard Run 0 Options --------- ASCII 0 Keyboard 0 Movement Mouse Keybinds 1 Fullscreen 2 Font 24/Smallcaps Map View 76x50 Tactical HUD 1 Map Filters NONE Filters NONE Steam 1 RUN: 032339ac-306d-4e69-ab09-abfe595346f7